[Event "Titled Tuesday Blitz May 03 Early 2022"]
[White "Hovhannisyan, Robert"]
[Black "Dubov, Daniil"]
[WhiteFideId "13302507"]
[BlackFideId "24126055"]
[WhiteElo "2570"]
[BlackElo "2791"]
[Result "1-0"]
[Round "05"]
[TimeControl "180+1"]
[Date "2022.05.03"]
[WhiteClock "0:00:05"]
[BlackClock "0:00:03"]

1. e4 {[%clk 0:03:00]}  c5 {[%clk 0:02:59]} 2. Nf3 {[%clk 0:03:00]}  Nc6 {[%clk 0:02:59]} 3. d4 {[%clk 0:03:00]}  cxd4 {[%clk 0:03:00]} 4. Nxd4 {[%clk 0:03:01]}  Nf6 {[%clk 0:03:00]} 5. Nc3 {[%clk 0:03:01]}  e5 {[%clk 0:03:00]} 6. Ndb5 {[%clk 0:03:01]}  d6 {[%clk 0:03:01]} 7. Bg5 {[%clk 0:03:01]}  a6 {[%clk 0:03:00]} 8. Na3 {[%clk 0:03:02]}  b5 {[%clk 0:03:01]} 9. Nd5 {[%clk 0:03:01]}  Be7 {[%clk 0:03:01]} 10. Bxf6 {[%clk 0:03:02]}  Bxf6 {[%clk 0:03:02]} 11. c3 {[%clk 0:03:02]}  Rb8 {[%clk 0:02:58]} 12. Nc2 {[%clk 0:03:02]}  Bg5 {[%clk 0:02:58]} 13. g3 {[%clk 0:02:52]}  O-O {[%clk 0:02:56]} 14. h4 {[%clk 0:02:51]}  Bh6 {[%clk 0:02:55]} 15. Bh3 {[%clk 0:02:49]}  Be6 {[%clk 0:02:54]} 16. Qd3 {[%clk 0:02:37]}  Qd7 {[%clk 0:02:49]} 17. Bxe6 {[%clk 0:02:36]}  fxe6 {[%clk 0:02:48]} 18. Nde3 {[%clk 0:02:36]}  Bxe3 {[%clk 0:02:38]} 19. Nxe3 {[%clk 0:02:34]}  Rbd8 {[%clk 0:02:15]} 20. Rd1 {[%clk 0:02:27]}  Ne7 {[%clk 0:01:50]} 21. O-O {[%clk 0:02:24]}  d5 {[%clk 0:01:50]} 22. Rd2 {[%clk 0:02:10]}  d4 {[%clk 0:01:28]} 23. Ng4 {[%clk 0:02:05]}  Nc6 {[%clk 0:01:27]} 24. a3 {[%clk 0:01:32]}  Qf7 {[%clk 0:01:23]} 25. c4 {[%clk 0:01:01]}  b4 {[%clk 0:01:06]} 26. c5 {[%clk 0:00:53]}  Qg6 {[%clk 0:00:40]} 27. Qxa6 {[%clk 0:00:40]}  Qxe4 {[%clk 0:00:24]} 28. Qe2 {[%clk 0:00:23]}  Qd5 {[%clk 0:00:14]} 29. Re1 {[%clk 0:00:22]}  bxa3 {[%clk 0:00:14]} 30. bxa3 {[%clk 0:00:22]}  Rf5 {[%clk 0:00:06]} 31. Ne3 {[%clk 0:00:11]}  dxe3 {[%clk 0:00:04]} 32. Rxd5 {[%clk 0:00:10]}  exf2+ {[%clk 0:00:04]} 33. Qxf2 {[%clk 0:00:10]}  Rxd5 {[%clk 0:00:04]} 34. Qe3 {[%clk 0:00:08]}  Nd4 {[%clk 0:00:05]} 35. Rf1 {[%clk 0:00:06]}  Rxf1+ {[%clk 0:00:05]} 36. Kxf1 {[%clk 0:00:07]}  Rxc5 {[%clk 0:00:06]} 37. Qe4 {[%clk 0:00:07]}  Rd5 {[%clk 0:00:06]} 38. a4 {[%clk 0:00:06]}  h5 {[%clk 0:00:06]} 39. Kg2 {[%clk 0:00:06]}  Nf5 {[%clk 0:00:07]} 40. Qb4 {[%clk 0:00:04]}  Nd4 {[%clk 0:00:05]} 41. Qb8+ {[%clk 0:00:04]}  Kh7 {[%clk 0:00:04]} 42. Qe8 {[%clk 0:00:04]}  Kh6 {[%clk 0:00:04]} 43. Qh8+ {[%clk 0:00:03]}  Kg6 {[%clk 0:00:03]} 44. Qe8+ {[%clk 0:00:04]}  Kh6 {[%clk 0:00:04]} 45. Kf2 {[%clk 0:00:03]}  e4 {[%clk 0:00:03]} 46. Qh8+ {[%clk 0:00:04]}  Kg6 {[%clk 0:00:03]} 47. Qe8+ {[%clk 0:00:05]}  Kh6 {[%clk 0:00:02]} 48. Qh8+ {[%clk 0:00:04]}  Kg6 {[%clk 0:00:02]} 49. Ke3 {[%clk 0:00:05]}  Nf5+ {[%clk 0:00:02]} 50. Kxe4 {[%clk 0:00:04]}  Rd4+ {[%clk 0:00:03]} 51. Ke5 {[%clk 0:00:04]}  Rxa4 {[%clk 0:00:03]} 52. Qe8+ {[%clk 0:00:04]}  Kh6 {[%clk 0:00:03]} 53. Qxa4 {[%clk 0:00:05]} 1-0


[Site "https://www.chess.com"]

[Event "Titled Tuesday Blitz May 03 Early 2022"]
[White "Ismagambetov, Anuar"]
[Black "Fedoseev, Vladimir"]
[WhiteFideId "13701525"]
[BlackFideId "24130737"]
[WhiteElo "2487"]
[BlackElo "2726"]
[Result "0-1"]
[Round "05"]
[TimeControl "180+1"]
[Date "2022.05.03"]
[WhiteClock "0:00:02"]
[BlackClock "0:00:09"]

1. e4 {[%clk 0:03:00]}  c5 {[%clk 0:03:00]} 2. Nf3 {[%clk 0:03:00]}  d6 {[%clk 0:03:00]} 3. d4 {[%clk 0:03:01]}  cxd4 {[%clk 0:03:01]} 4. Nxd4 {[%clk 0:03:02]}  Nf6 {[%clk 0:03:01]} 5. Nc3 {[%clk 0:03:02]}  a6 {[%clk 0:02:59]} 6. Bg5 {[%clk 0:03:02]}  Nbd7 {[%clk 0:02:56]} 7. f4 {[%clk 0:03:02]}  e5 {[%clk 0:02:33]} 8. Nf5 {[%clk 0:02:42]}  Qa5 {[%clk 0:02:31]} 9. Qf3 {[%clk 0:02:35]}  g6 {[%clk 0:02:00]} 10. Ne3 {[%clk 0:02:24]}  exf4 {[%clk 0:01:53]} 11. Qxf4 {[%clk 0:02:19]}  Nh5 {[%clk 0:01:47]} 12. Qg4 {[%clk 0:02:05]}  Bg7 {[%clk 0:01:29]} 13. Nd5 {[%clk 0:01:58]}  Ndf6 {[%clk 0:01:20]} 14. Qe2 {[%clk 0:01:45]}  Nxd5 {[%clk 0:01:13]} 15. exd5+ {[%clk 0:01:44]}  Be5 {[%clk 0:01:13]} 16. g4 {[%clk 0:01:32]}  O-O {[%clk 0:00:58]} 17. Bd2 {[%clk 0:01:19]}  Nf6 {[%clk 0:00:55]} 18. Bh3 {[%clk 0:00:56]}  Nxd5 {[%clk 0:00:42]} 19. Ne4 {[%clk 0:00:55]}  Qb6 {[%clk 0:00:41]} 20. c4 {[%clk 0:00:43]}  Nf4 {[%clk 0:00:27]} 21. Bxf4 {[%clk 0:00:26]}  Bxf4 {[%clk 0:00:28]} 22. Nf6+ {[%clk 0:00:26]}  Kg7 {[%clk 0:00:28]} 23. Nd5 {[%clk 0:00:26]}  Qc6 {[%clk 0:00:28]} 24. O-O {[%clk 0:00:24]}  Be5 {[%clk 0:00:23]} 25. Bg2 {[%clk 0:00:22]}  Be6 {[%clk 0:00:22]} 26. Kh1 {[%clk 0:00:19]}  Qc5 {[%clk 0:00:22]} 27. Rad1 {[%clk 0:00:18]}  Rac8 {[%clk 0:00:20]} 28. b3 {[%clk 0:00:17]}  b5 {[%clk 0:00:21]} 29. cxb5 {[%clk 0:00:13]}  Qxb5 {[%clk 0:00:20]} 30. Qf3 {[%clk 0:00:11]}  Rc2 {[%clk 0:00:19]} 31. Rfe1 {[%clk 0:00:09]}  f5 {[%clk 0:00:12]} 32. g5 {[%clk 0:00:08]}  Qc5 {[%clk 0:00:12]} 33. Nf4 {[%clk 0:00:07]}  Bf7 {[%clk 0:00:11]} 34. Nd3 {[%clk 0:00:06]}  Qa5 {[%clk 0:00:12]} 35. a4 {[%clk 0:00:03]}  Re8 {[%clk 0:00:11]} 36. b4 {[%clk 0:00:04]}  Qxa4 {[%clk 0:00:11]} 37. Qb7 {[%clk 0:00:04]}  Qb5 {[%clk 0:00:10]} 38. Qc7 {[%clk 0:00:02]}  Rxc7 {[%clk 0:00:09]} 0-1


[Site "https://www.chess.com"]

[Event "Titled Tuesday Blitz May 03 Early 2022"]
[White "Ismayil, Malak"]
[Black "Cramling Bellon, Anna"]
[WhiteFideId "13412604"]
[BlackFideId "32009232"]
[WhiteElo "1879"]
[BlackElo "1905"]
[Result "1-0"]
[Round "05"]
[TimeControl "180+1"]
[Date "2022.05.03"]
[WhiteClock "0:00:47"]
[BlackClock "0:00:03"]

1. e4 {[%clk 0:03:00]}  c5 {[%clk 0:02:59]} 2. Nf3 {[%clk 0:02:47]}  e6 {[%clk 0:02:57]} 3. Nc3 {[%clk 0:02:46]}  Nc6 {[%clk 0:02:52]} 4. Be2 {[%clk 0:02:41]}  d5 {[%clk 0:02:44]} 5. exd5 {[%clk 0:02:40]}  exd5 {[%clk 0:02:44]} 6. O-O {[%clk 0:02:40]}  Nf6 {[%clk 0:02:44]} 7. d4 {[%clk 0:02:39]}  Be7 {[%clk 0:02:42]} 8. Bg5 {[%clk 0:02:24]}  Be6 {[%clk 0:02:41]} 9. Re1 {[%clk 0:02:20]}  O-O {[%clk 0:02:39]} 10. h3 {[%clk 0:02:19]}  Rc8 {[%clk 0:02:35]} 11. Bb5 {[%clk 0:02:12]}  cxd4 {[%clk 0:02:27]} 12. Nxd4 {[%clk 0:02:08]}  Nxd4 {[%clk 0:02:26]} 13. Qxd4 {[%clk 0:02:09]}  h6 {[%clk 0:02:19]} 14. Bh4 {[%clk 0:02:02]}  a6 {[%clk 0:02:10]} 15. Bd3 {[%clk 0:02:01]}  Bc5 {[%clk 0:01:37]} 16. Qe5 {[%clk 0:01:59]}  Bd6 {[%clk 0:00:49]} 17. Qe2 {[%clk 0:01:52]}  g5 {[%clk 0:00:46]} 18. Bg3 {[%clk 0:01:48]}  Bxg3 {[%clk 0:00:46]} 19. fxg3 {[%clk 0:01:49]}  Qd6 {[%clk 0:00:46]} 20. g4 {[%clk 0:01:42]}  d4 {[%clk 0:00:44]} 21. Ne4 {[%clk 0:01:41]}  Qe7 {[%clk 0:00:23]} 22. Nxf6+ {[%clk 0:01:37]}  Qxf6 {[%clk 0:00:23]} 23. Qe4 {[%clk 0:01:37]}  Qg7 {[%clk 0:00:23]} 24. b3 {[%clk 0:01:28]}  Rfe8 {[%clk 0:00:21]} 25. Qxb7 {[%clk 0:01:26]}  Rcd8 {[%clk 0:00:11]} 26. Qf3 {[%clk 0:01:20]}  Bd5 {[%clk 0:00:10]} 27. Qf5 {[%clk 0:01:18]}  Rxe1+ {[%clk 0:00:06]} 28. Rxe1 {[%clk 0:01:17]}  Be6 {[%clk 0:00:06]} 29. Qa5 {[%clk 0:01:12]}  Rc8 {[%clk 0:00:03]} 30. Qxa6 {[%clk 0:01:10]}  Qf6 {[%clk 0:00:03]} 31. Bf5 {[%clk 0:01:05]}  Re8 {[%clk 0:00:03]} 32. Qc6 {[%clk 0:00:59]}  Re7 {[%clk 0:00:03]} 33. a4 {[%clk 0:00:48]}  Bxf5 {[%clk 0:00:03]} 34. Qxf6 {[%clk 0:00:47]}  Rxe1+ {[%clk 0:00:04]} 35. Kf2 {[%clk 0:00:47]}  Re2+ {[%clk 0:00:03]} 36. Kxe2 {[%clk 0:00:47]} 1-0


[Site "https://www.chess.com"]

[Event "Titled Tuesday Blitz May 03 Early 2022"]
[White "Johnson, Ben"]
[Black "Bifulco, Michel"]
[WhiteFideId "2010917"]
[BlackFideId "828580"]
[WhiteElo "2200"]
[BlackElo "2165"]
[Result "0-1"]
[Round "05"]
[TimeControl "180+1"]
[Date "2022.05.03"]
[WhiteClock "0:00:03"]
[BlackClock "0:00:11"]

1. Nf3 {[%clk 0:03:00]}  Nf6 {[%clk 0:02:59]} 2. c4 {[%clk 0:03:00]}  g6 {[%clk 0:02:59]} 3. b3 {[%clk 0:02:56]}  Bg7 {[%clk 0:02:59]} 4. Bb2 {[%clk 0:02:55]}  O-O {[%clk 0:02:59]} 5. g3 {[%clk 0:02:49]}  d6 {[%clk 0:03:00]} 6. d4 {[%clk 0:02:48]}  Nbd7 {[%clk 0:02:57]} 7. Bg2 {[%clk 0:02:46]}  Re8 {[%clk 0:02:58]} 8. O-O {[%clk 0:02:45]}  e5 {[%clk 0:02:58]} 9. dxe5 {[%clk 0:02:44]}  Ng4 {[%clk 0:02:55]} 10. Nc3 {[%clk 0:02:28]}  Ngxe5 {[%clk 0:02:54]} 11. Qd2 {[%clk 0:02:27]}  Nxf3+ {[%clk 0:02:41]} 12. exf3 {[%clk 0:02:28]}  Nc5 {[%clk 0:02:32]} 13. f4 {[%clk 0:02:25]}  Rb8 {[%clk 0:02:26]} 14. Rfe1 {[%clk 0:02:24]}  Bf5 {[%clk 0:02:25]} 15. Rxe8+ {[%clk 0:02:19]}  Qxe8 {[%clk 0:02:26]} 16. Re1 {[%clk 0:02:18]}  Qd7 {[%clk 0:02:22]} 17. Re3 {[%clk 0:01:56]}  Re8 {[%clk 0:02:13]} 18. b4 {[%clk 0:01:47]}  Nd3 {[%clk 0:02:05]} 19. Rxd3 {[%clk 0:00:57]}  Bxd3 {[%clk 0:02:06]} 20. Qxd3 {[%clk 0:00:56]}  Re1+ {[%clk 0:02:04]} 21. Bf1 {[%clk 0:00:57]}  Qh3 {[%clk 0:01:53]} 22. Na4 {[%clk 0:00:51]}  Bxb2 {[%clk 0:01:37]} 23. Nxb2 {[%clk 0:00:52]}  Ra1 {[%clk 0:01:35]} 24. c5 {[%clk 0:00:45]}  d5 {[%clk 0:01:22]} 25. Nd1 {[%clk 0:00:41]}  Qe6 {[%clk 0:01:17]} 26. Nc3 {[%clk 0:00:37]}  c6 {[%clk 0:01:13]} 27. Kg2 {[%clk 0:00:37]}  a5 {[%clk 0:01:11]} 28. bxa5 {[%clk 0:00:34]}  Qe7 {[%clk 0:01:07]} 29. Qd4 {[%clk 0:00:24]}  Qe1 {[%clk 0:01:07]} 30. Qd3 {[%clk 0:00:22]}  Rc1 {[%clk 0:01:04]} 31. Na4 {[%clk 0:00:17]}  Qxa5 {[%clk 0:01:02]} 32. Nb6 {[%clk 0:00:17]}  Qxc5 {[%clk 0:00:59]} 33. Nd7 {[%clk 0:00:17]}  Qc4 {[%clk 0:00:53]} 34. Nf6+ {[%clk 0:00:13]}  Kg7 {[%clk 0:00:51]} 35. Ne8+ {[%clk 0:00:13]}  Kf8 {[%clk 0:00:48]} 36. Nd6 {[%clk 0:00:13]}  Qxd3 {[%clk 0:00:46]} 37. Bxd3 {[%clk 0:00:14]}  b5 {[%clk 0:00:43]} 38. Kf3 {[%clk 0:00:12]}  Rc3 {[%clk 0:00:42]} 39. Ke2 {[%clk 0:00:12]}  Ra3 {[%clk 0:00:41]} 40. Bb1 {[%clk 0:00:11]}  Ke7 {[%clk 0:00:34]} 41. Nb7 {[%clk 0:00:11]}  Ra7 {[%clk 0:00:30]} 42. Nc5 {[%clk 0:00:10]}  Kd6 {[%clk 0:00:30]} 43. Nd3 {[%clk 0:00:10]}  c5 {[%clk 0:00:29]} 44. Ne5 {[%clk 0:00:09]}  b4 {[%clk 0:00:27]} 45. h4 {[%clk 0:00:09]}  c4 {[%clk 0:00:25]} 46. h5 {[%clk 0:00:08]}  Kc5 {[%clk 0:00:24]} 47. hxg6 {[%clk 0:00:08]}  hxg6 {[%clk 0:00:24]} 48. g4 {[%clk 0:00:09]}  d4 {[%clk 0:00:23]} 49. f5 {[%clk 0:00:08]}  d3+ {[%clk 0:00:22]} 50. Kd2 {[%clk 0:00:04]}  gxf5 {[%clk 0:00:20]} 51. gxf5 {[%clk 0:00:05]}  Kd5 {[%clk 0:00:17]} 52. f4 {[%clk 0:00:04]}  f6 {[%clk 0:00:14]} 53. Nf3 {[%clk 0:00:04]}  Ke4 {[%clk 0:00:12]} 54. Ne1 {[%clk 0:00:03]}  Kxf4 {[%clk 0:00:11]} 0-1


[Site "https://www.chess.com"]

[Event "Titled Tuesday Blitz May 03 Early 2022"]
[White "Karthikeyan, Murali"]
[Black "Kollars, Dmitrij"]
[WhiteFideId "5074452"]
[BlackFideId "12909572"]
[WhiteElo "2579"]
[BlackElo "2584"]
[Result "0-1"]
[Round "05"]
[TimeControl "180+1"]
[Date "2022.05.03"]
[WhiteClock "0:00:02"]
[BlackClock "0:00:15"]

1. e4 {[%clk 0:01:42]}  c6 {[%clk 0:02:56]} 2. d4 {[%clk 0:01:41]}  d5 {[%clk 0:02:57]} 3. f3 {[%clk 0:01:41]}  e6 {[%clk 0:02:54]} 4. Nc3 {[%clk 0:01:40]}  Bb4 {[%clk 0:02:52]} 5. e5 {[%clk 0:01:33]}  c5 {[%clk 0:02:47]} 6. a3 {[%clk 0:01:32]}  Ba5 {[%clk 0:02:47]} 7. b4 {[%clk 0:01:16]}  cxd4 {[%clk 0:02:36]} 8. Nb5 {[%clk 0:01:16]}  Bc7 {[%clk 0:02:31]} 9. f4 {[%clk 0:01:17]}  Ne7 {[%clk 0:02:29]} 10. Nf3 {[%clk 0:01:15]}  Nbc6 {[%clk 0:02:27]} 11. Bd3 {[%clk 0:01:15]}  a5 {[%clk 0:02:09]} 12. Rb1 {[%clk 0:01:09]}  axb4 {[%clk 0:02:09]} 13. axb4 {[%clk 0:01:10]}  Nf5 {[%clk 0:01:55]} 14. Qe2 {[%clk 0:01:02]}  O-O {[%clk 0:01:45]} 15. Nxc7 {[%clk 0:00:33]}  Qxc7 {[%clk 0:01:45]} 16. g4 {[%clk 0:00:34]}  Ne3 {[%clk 0:01:19]} 17. b5 {[%clk 0:00:26]}  Na5 {[%clk 0:00:51]} 18. Nxd4 {[%clk 0:00:23]}  Nxg4 {[%clk 0:00:42]} 19. Bd2 {[%clk 0:00:16]}  f5 {[%clk 0:00:41]} 20. h3 {[%clk 0:00:10]}  Nh6 {[%clk 0:00:40]} 21. Rg1 {[%clk 0:00:10]}  Nc4 {[%clk 0:00:35]} 22. Bb4 {[%clk 0:00:09]}  Rf7 {[%clk 0:00:34]} 23. Qh5 {[%clk 0:00:06]}  Kh8 {[%clk 0:00:34]} 24. Ke2 {[%clk 0:00:04]}  Bd7 {[%clk 0:00:21]} 25. Rg3 {[%clk 0:00:02]}  Rg8 {[%clk 0:00:19]} 26. Rbg1 {[%clk 0:00:01]}  Qc8 {[%clk 0:00:19]} 27. Qh4 {[%clk 0:00:01]}  Nb2 {[%clk 0:00:16]} 28. Be1 {[%clk 0:00:01]}  Nxd3 {[%clk 0:00:16]} 29. cxd3 {[%clk 0:00:02]}  Qc5 {[%clk 0:00:16]} 30. Bf2 {[%clk 0:00:02]}  Qa3 {[%clk 0:00:16]} 31. Be3 {[%clk 0:00:02]}  Bxb5 {[%clk 0:00:15]} 32. Kf3 {[%clk 0:00:01]}  Bxd3 {[%clk 0:00:14]} 33. Nxe6 {[%clk 0:00:02]}  Be4+ {[%clk 0:00:15]} 34. Kf2 {[%clk 0:00:02]}  d4 {[%clk 0:00:14]} 35. Bxd4 {[%clk 0:00:02]}  Qa2+ {[%clk 0:00:14]} 36. Ke3 {[%clk 0:00:02]}  Qxe6 {[%clk 0:00:15]} 0-1


[Site "https://www.chess.com"]

[Event "Titled Tuesday Blitz May 03 Early 2022"]
[White "Khabinets, Ivan"]
[Black "Rodchenkov, Sergey D."]
[WhiteFideId "14115980"]
[BlackFideId "4168712"]
[WhiteElo "2114"]
[BlackElo "2306"]
[Result "1-0"]
[Round "05"]
[TimeControl "180+1"]
[Date "2022.05.03"]
[WhiteClock "0:00:32"]
[BlackClock "0:00:18"]

1. d4 {[%clk 0:03:00]}  Nf6 {[%clk 0:02:59]} 2. c4 {[%clk 0:03:00]}  e6 {[%clk 0:02:59]} 3. g3 {[%clk 0:02:59]}  b6 {[%clk 0:02:58]} 4. Bg2 {[%clk 0:02:59]}  c6 {[%clk 0:02:59]} 5. Nc3 {[%clk 0:02:59]}  Ba6 {[%clk 0:02:59]} 6. b3 {[%clk 0:02:58]}  d5 {[%clk 0:02:56]} 7. Nf3 {[%clk 0:02:56]}  Bb4 {[%clk 0:02:53]} 8. Bd2 {[%clk 0:02:52]}  Be7 {[%clk 0:02:51]} 9. Ne5 {[%clk 0:02:51]}  O-O {[%clk 0:02:46]} 10. O-O {[%clk 0:02:43]}  Nfd7 {[%clk 0:02:46]} 11. Nxd7 {[%clk 0:02:38]}  Nxd7 {[%clk 0:02:41]} 12. Rc1 {[%clk 0:02:39]}  Nf6 {[%clk 0:02:39]} 13. e3 {[%clk 0:02:38]}  Rc8 {[%clk 0:02:37]} 14. Ne2 {[%clk 0:02:32]}  Ne4 {[%clk 0:02:31]} 15. Qc2 {[%clk 0:02:23]}  Nxd2 {[%clk 0:02:26]} 16. Qxd2 {[%clk 0:02:24]}  Ba3 {[%clk 0:02:25]} 17. Rc2 {[%clk 0:02:22]}  Qe7 {[%clk 0:02:25]} 18. Rd1 {[%clk 0:02:20]}  Rfd8 {[%clk 0:02:19]} 19. Nf4 {[%clk 0:02:14]}  h6 {[%clk 0:01:50]} 20. c5 {[%clk 0:02:13]}  Bb5 {[%clk 0:01:39]} 21. Bf1 {[%clk 0:02:03]}  Bxf1 {[%clk 0:01:33]} 22. Kxf1 {[%clk 0:02:03]}  bxc5 {[%clk 0:01:33]} 23. dxc5 {[%clk 0:02:03]}  Bxc5 {[%clk 0:01:34]} 24. Rdc1 {[%clk 0:02:00]}  Bb6 {[%clk 0:01:32]} 25. Rxc6 {[%clk 0:01:59]}  Rxc6 {[%clk 0:01:32]} 26. Rxc6 {[%clk 0:02:00]}  Qa3 {[%clk 0:01:32]} 27. Kg2 {[%clk 0:01:56]}  Qa6 {[%clk 0:01:29]} 28. Qc2 {[%clk 0:01:55]}  Qb7 {[%clk 0:01:25]} 29. h4 {[%clk 0:01:54]}  Qa8 {[%clk 0:01:19]} 30. Kg1 {[%clk 0:01:51]}  Qb7 {[%clk 0:01:18]} 31. Nd3 {[%clk 0:01:49]}  Qe7 {[%clk 0:01:10]} 32. Rc8 {[%clk 0:01:40]}  Qd7 {[%clk 0:01:09]} 33. Rxd8+ {[%clk 0:01:39]}  Qxd8 {[%clk 0:01:10]} 34. Ne5 {[%clk 0:01:39]}  Qd6 {[%clk 0:01:05]} 35. Qc8+ {[%clk 0:01:35]}  Kh7 {[%clk 0:01:02]} 36. Nd7 {[%clk 0:01:28]}  Kg6 {[%clk 0:00:56]} 37. Qe8 {[%clk 0:01:15]}  h5 {[%clk 0:00:42]} 38. Nf8+ {[%clk 0:01:13]}  Kf6 {[%clk 0:00:42]} 39. Nh7+ {[%clk 0:01:03]}  Kg6 {[%clk 0:00:41]} 40. Ng5 {[%clk 0:01:02]}  Qc7 {[%clk 0:00:42]} 41. Qh8 {[%clk 0:00:59]}  d4 {[%clk 0:00:30]} 42. Qh7+ {[%clk 0:00:57]}  Kf6 {[%clk 0:00:29]} 43. exd4 {[%clk 0:00:41]}  Bxd4 {[%clk 0:00:28]} 44. Ne4+ {[%clk 0:00:39]}  Ke5 {[%clk 0:00:21]} 45. Ng5 {[%clk 0:00:39]}  Kd5 {[%clk 0:00:20]} 46. Qxh5 {[%clk 0:00:33]}  Qxg3+ {[%clk 0:00:19]} 47. Kh1 {[%clk 0:00:33]}  Qe5 {[%clk 0:00:19]} 48. Qf3+ {[%clk 0:00:32]}  Kd6 {[%clk 0:00:18]} 49. Nxf7+ {[%clk 0:00:32]} 1-0


[Site "https://www.chess.com"]

[Event "Titled Tuesday Blitz May 03 Early 2022"]
[White "Khamdamova, Afruza"]
[Black "Winkels, Marcel"]
[WhiteFideId "14210444"]
[BlackFideId "1003887"]
[WhiteElo "1660"]
[BlackElo "1900"]
[Result "1-0"]
[Round "05"]
[TimeControl "180+1"]
[Date "2022.05.03"]
[WhiteClock "0:00:57"]
[BlackClock "0:00:06"]

1. e4 {[%clk 0:03:00]}  c5 {[%clk 0:02:59]} 2. Nf3 {[%clk 0:03:00]}  d6 {[%clk 0:02:59]} 3. d4 {[%clk 0:03:00]}  cxd4 {[%clk 0:03:00]} 4. Nxd4 {[%clk 0:03:00]}  Nf6 {[%clk 0:03:00]} 5. Nc3 {[%clk 0:02:58]}  a6 {[%clk 0:03:01]} 6. Bg5 {[%clk 0:02:58]}  Nbd7 {[%clk 0:03:00]} 7. f4 {[%clk 0:02:57]}  Qc7 {[%clk 0:02:59]} 8. Qf3 {[%clk 0:02:56]}  b5 {[%clk 0:02:58]} 9. O-O-O {[%clk 0:02:55]}  Bb7 {[%clk 0:02:58]} 10. Bd3 {[%clk 0:02:52]}  h6 {[%clk 0:02:50]} 11. Bh4 {[%clk 0:02:51]}  g6 {[%clk 0:02:45]} 12. Kb1 {[%clk 0:02:42]}  Bg7 {[%clk 0:02:44]} 13. g4 {[%clk 0:02:42]}  O-O {[%clk 0:02:28]} 14. g5 {[%clk 0:02:31]}  Nh5 {[%clk 0:02:19]} 15. Nce2 {[%clk 0:02:25]}  Nc5 {[%clk 0:02:10]} 16. f5 {[%clk 0:02:18]}  Rac8 {[%clk 0:01:52]} 17. gxh6 {[%clk 0:02:16]}  Bxh6 {[%clk 0:01:48]} 18. Rhg1 {[%clk 0:02:13]}  Nxd3 {[%clk 0:01:37]} 19. cxd3 {[%clk 0:02:01]}  Ng7 {[%clk 0:01:23]} 20. Qg2 {[%clk 0:01:47]}  e5 {[%clk 0:01:04]} 21. fxe6 {[%clk 0:01:35]}  Be3 {[%clk 0:00:54]} 22. exf7+ {[%clk 0:01:28]}  Qxf7 {[%clk 0:00:52]} 23. Rgf1 {[%clk 0:01:22]}  Qe8 {[%clk 0:00:47]} 24. Bg5 {[%clk 0:01:19]}  Bxg5 {[%clk 0:00:33]} 25. Qxg5 {[%clk 0:01:19]}  Rc5 {[%clk 0:00:22]} 26. Qg3 {[%clk 0:01:13]}  Nh5 {[%clk 0:00:19]} 27. Qxd6 {[%clk 0:01:12]}  Rc8 {[%clk 0:00:14]} 28. Rxf8+ {[%clk 0:01:09]}  Qxf8 {[%clk 0:00:12]} 29. Qxg6+ {[%clk 0:01:09]}  Ng7 {[%clk 0:00:12]} 30. Rg1 {[%clk 0:01:06]}  Qf7 {[%clk 0:00:12]} 31. Nf5 {[%clk 0:00:59]}  Rc7 {[%clk 0:00:06]} 32. Nh6+ {[%clk 0:00:57]} 1-0


[Site "https://www.chess.com"]

[Event "Titled Tuesday Blitz May 03 Early 2022"]
[White "Khokhlova, Daria"]
[Black "Kanyamarala, Tarun"]
[WhiteFideId "24182729"]
[BlackFideId "45004714"]
[WhiteElo "2034"]
[BlackElo "2177"]
[Result "0-1"]
[Round "05"]
[TimeControl "180+1"]
[Date "2022.05.03"]
[WhiteClock "0:00:37"]
[BlackClock "0:00:58"]

1. d4 {[%clk 0:03:00]}  d5 {[%clk 0:02:36]} 2. c4 {[%clk 0:03:00]}  c6 {[%clk 0:02:36]} 3. Nf3 {[%clk 0:02:59]}  Nf6 {[%clk 0:02:35]} 4. e3 {[%clk 0:02:58]}  e6 {[%clk 0:02:34]} 5. b3 {[%clk 0:02:58]}  Nbd7 {[%clk 0:02:31]} 6. Bb2 {[%clk 0:02:57]}  Bb4+ {[%clk 0:02:30]} 7. Nbd2 {[%clk 0:02:55]}  O-O {[%clk 0:02:30]} 8. Bd3 {[%clk 0:02:54]}  Ne4 {[%clk 0:02:29]} 9. O-O {[%clk 0:02:45]}  f5 {[%clk 0:02:26]} 10. Qc2 {[%clk 0:02:41]}  Bd6 {[%clk 0:02:23]} 11. Ne5 {[%clk 0:02:38]}  Nxe5 {[%clk 0:02:19]} 12. dxe5 {[%clk 0:02:38]}  Bc7 {[%clk 0:02:17]} 13. Rad1 {[%clk 0:02:26]}  Bd7 {[%clk 0:02:11]} 14. f3 {[%clk 0:02:25]}  Nxd2 {[%clk 0:02:04]} 15. Qxd2 {[%clk 0:02:21]}  Qb8 {[%clk 0:01:56]} 16. Qc3 {[%clk 0:02:04]}  Be8 {[%clk 0:01:33]} 17. e4 {[%clk 0:02:01]}  dxe4 {[%clk 0:01:20]} 18. fxe4 {[%clk 0:02:00]}  Bh5 {[%clk 0:01:19]} 19. Rd2 {[%clk 0:01:48]}  fxe4 {[%clk 0:01:18]} 20. Rxf8+ {[%clk 0:01:46]}  Qxf8 {[%clk 0:01:17]} 21. Bxe4 {[%clk 0:01:34]}  Bb6+ {[%clk 0:01:17]} 22. Rd4 {[%clk 0:00:37]}  Bxd4+ {[%clk 0:00:58]} 23. Qxd4 {[%clk 0:00:37]}  Rd8 {[%clk 0:00:58]} 0-1


[Site "https://www.chess.com"]

[Event "Titled Tuesday Blitz May 03 Early 2022"]
[White "Kosteniuk, Alexandra"]
[Black "Vifleemskaia, Svetlana"]
[WhiteFideId "4128125"]
[BlackFideId "4129490"]
[WhiteElo "2469"]
[BlackElo "1901"]
[Result "1-0"]
[Round "05"]
[TimeControl "180+1"]
[Date "2022.05.03"]
[WhiteClock "0:01:31"]
[BlackClock "0:00:10"]

1. e4 {[%clk 0:02:57]}  e5 {[%clk 0:02:59]} 2. f4 {[%clk 0:02:57]}  d5 {[%clk 0:02:58]} 3. exd5 {[%clk 0:02:54]}  exf4 {[%clk 0:02:57]} 4. Nf3 {[%clk 0:02:55]}  Nf6 {[%clk 0:02:57]} 5. Bb5+ {[%clk 0:02:53]}  c6 {[%clk 0:02:56]} 6. dxc6 {[%clk 0:02:52]}  Nxc6 {[%clk 0:02:55]} 7. d4 {[%clk 0:02:49]}  Bg4 {[%clk 0:02:14]} 8. Bxf4 {[%clk 0:02:35]}  Qa5+ {[%clk 0:02:10]} 9. Nc3 {[%clk 0:02:34]}  O-O-O {[%clk 0:02:09]} 10. Bxc6 {[%clk 0:02:34]}  bxc6 {[%clk 0:02:07]} 11. O-O {[%clk 0:02:27]}  Bd6 {[%clk 0:02:01]} 12. Qd2 {[%clk 0:02:18]}  c5 {[%clk 0:01:46]} 13. d5 {[%clk 0:02:13]}  c4 {[%clk 0:01:33]} 14. Bxd6 {[%clk 0:02:12]}  Rxd6 {[%clk 0:01:33]} 15. Qf4 {[%clk 0:02:12]}  Rhd8 {[%clk 0:01:30]} 16. Qxc4+ {[%clk 0:02:12]}  Kb8 {[%clk 0:01:28]} 17. Nd4 {[%clk 0:02:09]}  Qb6 {[%clk 0:01:21]} 18. Kh1 {[%clk 0:02:09]}  Ka8 {[%clk 0:01:20]} 19. Nc6 {[%clk 0:02:07]}  Rc8 {[%clk 0:01:16]} 20. Rxf6 {[%clk 0:02:07]}  Rxf6 {[%clk 0:01:11]} 21. Qxg4 {[%clk 0:02:07]}  Re8 {[%clk 0:01:04]} 22. h3 {[%clk 0:02:05]}  Qxb2 {[%clk 0:01:00]} 23. Rb1 {[%clk 0:01:59]}  Qxc3 {[%clk 0:00:56]} 24. Qd7 {[%clk 0:01:58]}  Re1+ {[%clk 0:00:40]} 25. Rxe1 {[%clk 0:01:55]}  Qxe1+ {[%clk 0:00:41]} 26. Kh2 {[%clk 0:01:56]}  Rxc6 {[%clk 0:00:29]} 27. Qxc6+ {[%clk 0:01:54]}  Kb8 {[%clk 0:00:28]} 28. Qd6+ {[%clk 0:01:52]}  Kb7 {[%clk 0:00:22]} 29. Qd7+ {[%clk 0:01:51]}  Ka6 {[%clk 0:00:16]} 30. Qc6+ {[%clk 0:01:48]}  Ka5 {[%clk 0:00:16]} 31. Qc5+ {[%clk 0:01:48]}  Ka6 {[%clk 0:00:10]} 32. d6 {[%clk 0:01:48]}  Qd2 {[%clk 0:00:11]} 33. Qc6+ {[%clk 0:01:30]}  Ka5 {[%clk 0:00:11]} 34. Qc7+ {[%clk 0:01:31]}  Ka6 {[%clk 0:00:10]} 35. d7 {[%clk 0:01:31]} 1-0


[Site "https://www.chess.com"]